bitfinex-derivatives/quotes_BTCF0:USTF0_20250313
["timestamp","ask_amount","ask_price","bid_price","bid_amount"]
[1741868417664,0.29605311,83029.0,83028.0,0.1806884]
[1741868417866,0.36525311,83029.0,83028.0,0.1806884]
[1741868418065,0.33075311,83029.0,83028.0,0.1806884]
[1741868418964,0.21029021,83029.0,83027.0,0.0339]
[1741868419158,0.1807045,83026.0,83025.0,0.1204666]
[1741868419466,0.1797045,83026.0,83025.0,0.1204666]
[1741868419665,0.2489045,83026.0,83025.0,0.1204666]
[1741868420252,0.2489045,83026.0,83025.0,0.1214666]
[1741868420459,0.2479045,83026.0,83025.0,0.001]
[1741868420762,0.2479045,83026.0,83025.0,0.1214673]
[1741868421168,0.2479045,83026.0,83025.0,0.1224673]
[1741868422161,0.2479045,83026.0,83025.0,0.002]
[1741868422370,0.0692,83026.0,83007.0,0.0602464]
[1741868422666,0.0692,83026.0,83000.0,0.0602514]
[1741868422667,0.120489,83010.0,83009.0,0.1526886]
[1741868422866,0.120489,83010.0,83009.0,0.0322]
[1741868423065,0.1204934,83008.0,83006.0,0.1204944]
[1741868423263,0.1204934,83008.0,83007.0,0.1550922]
[1741868423464,0.1204934,83008.0,83007.0,0.1887922]
[1741868423659,0.1204934,83008.0,83007.0,0.2007922]
[1741868424262,0.1204934,83008.0,83007.0,0.1887922]
[1741868424461,0.1204934,83008.0,83007.0,0.1947934]
[1741868424659,0.1204934,83008.0,83007.0,0.006]
[1741868424961,0.1205065,82998.0,82990.0,0.1205168]
[1741868425169,0.2487065,82998.0,82997.0,0.1205079]
[1741868425469,0.26133387,82998.0,82997.0,0.1205079]
[1741868426062,0.1205137,82994.0,82993.0,0.1807695]
[1741868426269,0.1205137,82994.0,82993.0,0.2153695]
[1741868426770,0.1205137,82994.0,82993.0,0.0948568]
[1741868426971,0.1175137,82994.0,82993.0,0.0948568]
[1741868428371,0.1175137,82994.0,82993.0,0.0346]
[1741868428967,0.1175137,82994.0,82993.0,0.0686]
[1741868429168,0.26133567,82998.0,82997.0,0.1205079]
[1741868429568,0.14082737,82998.0,82997.0,0.1205079]
[1741868429766,0.1205094,82996.0,82995.0,0.1532084]
[1741868429965,0.1205094,82996.0,82995.0,0.3074185]
[1741868430374,0.1205094,82996.0,82995.0,0.1542084]
[1741868430574,0.1205094,82996.0,82995.0,0.0337]
[1741868430874,0.1205094,82996.0,82995.0,0.1542108]
[1741868434471,0.20108127,82998.0,82997.0,0.1205079]
[1741868436377,0.1282,82998.0,82997.0,0.1205079]
[1741868436672,0.0344,83006.0,82995.0,0.0337]
[1741868436673,0.1333209,83003.0,83002.0,0.1205007]
[1741868436875,0.1204999,83003.0,83002.0,0.1524007]
[1741868437079,0.2487399,83003.0,83002.0,0.1866007]
[1741868437275,0.26157229,83003.0,83002.0,0.0342]
[1741868437672,0.26157229,83003.0,83002.0,0.1547007]
[1741868437868,0.26157229,83003.0,83002.0,0.1557007]
[1741868438280,0.26157229,83003.0,83002.0,0.0352]
[1741868438484,0.26157229,83003.0,83002.0,0.001]
[1741868438880,0.26157229,83003.0,82976.0,0.0602689]
[1741868438881,0.1205181,82990.0,82976.0,0.0602689]
[1741868439078,0.2487981,82990.0,82983.0,0.1205274]
[1741868439276,0.2487981,82990.0,82984.0,0.0347]
[1741868439475,0.2487981,82990.0,82984.0,0.1552263]
[1741868439882,0.2487981,82990.0,82984.0,0.0347]
[1741868440086,0.2487981,82990.0,82989.0,0.00218065]
[1741868441478,0.1205326,82981.0,82980.0,0.1205325]
[1741868441677,0.1205326,82981.0,82980.0,0.1544325]
[1741868441889,0.1554326,82981.0,82980.0,0.1544325]
[1741868442582,0.1564326,82981.0,82980.0,0.0339]
[1741868442988,0.16883394,82981.0,82980.0,0.0339]
[1741868443281,0.20313394,82981.0,82980.0,0.0339]
[1741868443686,0.08260134,82981.0,82979.0,0.0324]
[1741868443987,0.128,82980.0,82972.0,0.00018076]
[1741868444188,0.128,82980.0,82972.0,0.12072496]
[1741868444189,0.1205428,82973.0,82972.0,0.12072496]
[1741868444689,0.0653,82974.0,82973.0,0.1205428]
[1741868444886,0.0653,82974.0,82973.0,0.1535428]
[1741868445189,0.0653,82974.0,82973.0,0.1869428]
[1741868446479,0.0336,82974.0,82973.0,0.1869428]
[1741868446886,0.128,82980.0,82976.0,0.0602685]
[1741868447087,0.128,82980.0,82979.0,0.1205341]
[1741868447387,0.00018076,82981.0,82977.0,0.1613677]
[1741868447593,0.12786076,82981.0,82980.0,0.1205326]
[1741868448282,0.00018076,82981.0,82980.0,0.1205326]
[1741868448692,0.00018076,82981.0,82980.0,0.13392311]
[1741868451593,0.00018076,82981.0,82980.0,0.1205326]
[1741868455797,0.00018076,82981.0,82980.0,0.1890326]
[1741868457583,0.00018076,82981.0,82980.0,0.202495]
[1741868458900,0.00018076,82981.0,82980.0,0.21424198]
[1741868461588,0.00018076,82981.0,82980.0,0.21425648]
[1741868462101,0.00018076,82981.0,82980.0,0.21427765]
[1741868462697,1.4002,83024.0,82980.0,0.20374505]
[1741868462909,1.4002,83024.0,83005.0,0.1204963]
[1741868462910,0.0602466,83008.0,83005.0,0.1204963]
[1741868463197,1.401,83024.0,83005.0,0.1204963]
[1741868463198,0.00180767,83023.0,83005.0,0.1204963]
[1741868463398,0.1264,83009.0,83008.0,0.120492]
[1741868463697,0.1264,83009.0,83008.0,0.14566945]
[1741868463895,0.1264,83009.0,83008.0,0.1339544]
[1741868464195,0.1264,83009.0,83008.0,0.2000544]
[1741868464798,0.1304,83009.0,83008.0,0.186592]
[1741868465294,0.1264,83009.0,83008.0,0.186592]
[1741868465496,0.2478905,83009.0,83008.0,0.186592]
[1741868465904,0.1274,83009.0,83008.0,0.186592]
[1741868466402,0.1284,83009.0,83008.0,0.186592]
[1741868466995,0.1969,83009.0,83008.0,0.186592]
[1741868467404,0.0365,83009.0,83008.0,0.186592]
[1741868467697,0.002,83009.0,83008.0,0.186592]
[1741868468798,0.00018076,83017.0,83016.0,0.1204803]
[1741868469302,0.00018076,83017.0,83016.0,0.2216803]
[1741868469904,0.00400006,83017.0,83016.0,0.2216803]
[1741868470104,0.0701,83031.0,83025.0,0.1204673]
[1741868470598,0.0701,83031.0,83025.0,0.3704673]
[1741868470599,0.0344,83031.0,83025.0,0.3704673]
[1741868470897,0.0344,83031.0,83025.0,0.13302828]
[1741868471103,0.0344,83031.0,83030.0,0.12046]
[1741868471487,0.03588076,83034.0,83033.0,0.1204557]
[1741868472297,0.03588076,83034.0,83033.0,0.1531557]
[1741868472597,0.15633496,83034.0,83033.0,0.1204557]
[1741868473304,0.15833496,83034.0,83033.0,0.1204557]
[1741868473505,0.03788076,83034.0,83033.0,0.1204557]
[1741868474101,0.03988076,83034.0,83033.0,0.1204557]
[1741868475096,0.16033496,83034.0,83033.0,0.1204557]
[1741868475296,0.03988076,83034.0,83033.0,0.1204557]
[1741868475808,0.07208076,83034.0,83033.0,0.1204557]
[1741868477103,0.19253496,83034.0,83033.0,0.1204557]
[1741868478599,0.07208076,83034.0,83033.0,0.1204557]
[1741868479901,0.08106604,83034.0,83033.0,0.1204557]
[1741868480205,0.08106604,83034.0,83033.0,0.1535557]
[1741868480704,0.07208076,83034.0,83033.0,0.1535557]
[1741868480905,0.07208076,83034.0,83033.0,0.1867557]
[1741868490214,0.0322,83034.0,83033.0,0.1867557]
[1741868490412,0.76,83050.0,83048.0,0.1204339]
[1741868490618,0.12432,83049.0,83048.0,0.1806508]
[1741868490819,0.12432,83049.0,83048.0,0.2134508]
[1741868491316,0.76068,83050.0,83049.0,0.1204325]
[1741868491515,0.76,83050.0,83049.0,0.1861325]
[1741868492423,0.76,83050.0,83049.0,0.1532325]
[1741868492921,0.884431,83050.0,83049.0,0.1204325]
[1741868493118,0.764,83050.0,83049.0,0.1861325]
[1741868493625,0.764,83050.0,83049.0,0.2202325]
[1741868496519,0.0601995,83073.0,83072.0,0.1524991]
[1741868496827,0.0351,83074.0,83073.0,0.1203977]
[1741868497024,0.0351,83074.0,83073.0,0.1868977]
[1741868498020,0.1892962,83074.0,83073.0,0.1868977]
[1741868498318,0.1892962,83074.0,83073.0,0.1547977]
[1741868498319,0.0689,83074.0,83073.0,0.1547977]
[1741868498622,0.0689,83074.0,83073.0,0.1868977]
[1741868498825,0.0739,83074.0,83073.0,0.1868977]
[1741868500228,0.1942962,83074.0,83073.0,0.1868977]
[1741868500824,0.1203977,83073.0,83072.0,0.1203977]
[1741868501231,0.1888977,83073.0,83072.0,0.1203977]
[1741868502022,0.1908977,83073.0,83072.0,0.1886977]
[1741868502329,0.1948977,83073.0,83072.0,0.1886977]
[1741868505325,0.1948977,83073.0,83072.0,0.0683]
[1741868505637,0.1948977,83073.0,83072.0,0.1540991]
[1741868506325,0.0745,83073.0,83072.0,0.1540991]
[1741868507032,0.1948977,83073.0,83072.0,0.1540991]
[1741868507221,0.0745,83073.0,83072.0,0.1540991]
[1741868507731,0.1948977,83073.0,83072.0,0.1540991]
[1741868508526,0.1948977,83073.0,83072.0,0.1877991]
[1741868510832,0.1948977,83073.0,83070.0,0.0602003]
[1741868511018,0.1346996,83073.0,83070.0,0.0602003]
[1741868511224,0.3038802,83072.0,83071.0,0.2493993]
[1741868511626,0.2530796,83072.0,83071.0,0.2493993]
[1741868512729,0.2580796,83072.0,83071.0,0.2493993]
[1741868514428,0.2600796,83072.0,83071.0,0.2493993]
[1741868516331,0.1367996,83072.0,83071.0,0.2493993]
[1741868516530,0.1367996,83072.0,83071.0,0.2840993]
[1741868517637,0.1367996,83072.0,83071.0,0.2969143]
[1741868518933,0.1019996,83072.0,83071.0,0.2969143]
[1741868519122,0.0418,83072.0,83071.0,0.2969143]
[1741868520135,0.007,83072.0,83071.0,0.2969143]
[1741868520532,0.1273991,83072.0,83071.0,0.2840993]
[1741868520938,0.1597991,83072.0,83071.0,0.2840993]
[1741868521137,0.0394,83072.0,83071.0,0.29661619]
[1741868521540,0.1597991,83072.0,83071.0,0.2840993]
[1741868521734,0.1597991,83072.0,83071.0,0.1290002]
[1741868525133,0.1273991,83072.0,83071.0,0.1290002]
[1741868525944,0.1595991,83072.0,83071.0,0.1290002]
[1741868527340,0.1595991,83072.0,83071.0,0.0688]
[1741868527537,0.1204093,83065.0,83064.0,0.00018065]
[1741868527842,0.1204093,83065.0,83064.0,0.06708065]
[1741868528033,0.1204093,83065.0,83064.0,0.18749135]
[1741868528339,0.0936039,83067.0,83064.0,0.06708065]
[1741868528543,0.0936039,83067.0,83066.0,0.1204078]
[1741868529142,0.0334,83067.0,83066.0,0.1204078]
[1741868529336,0.1232,83069.0,83068.0,0.1204049]
[1741868529743,0.1203953,83075.0,83074.0,0.1203962]
[1741868529940,0.12350032,83081.0,83080.0,0.1203875]
[1741868530133,0.24388642,83081.0,83080.0,0.1203875]
[1741868530334,0.12350032,83081.0,83080.0,0.1203875]
[1741868530534,0.24388642,83081.0,83080.0,0.1203875]
[1741868530741,0.24388642,83081.0,83080.0,0.1871875]
[1741868530937,0.00018032,83081.0,83080.0,0.1871875]
[1741868531241,0.12056642,83081.0,83080.0,0.1871875]
[1741868532036,0.12556642,83081.0,83080.0,0.1881875]
[1741868532244,0.12756642,83081.0,83080.0,0.1881875]
[1741868532641,0.27618426,83100.0,83080.0,0.4281875]
[1741868532836,0.1203602,83099.0,83091.0,0.1203716]
[1741868533035,0.39946426,83100.0,83091.0,0.1203716]
[1741868533240,0.0601814,83098.0,83091.0,0.1203716]
[1741868533444,0.1203678,83094.0,83091.0,0.1203716]
[1741868533739,0.1203692,83093.0,83091.0,0.1880716]
[1741868533946,0.28236881,83096.0,83091.0,0.1880716]
[1741868534243,0.28236881,83096.0,83095.0,0.1203658]
[1741868534432,0.40273311,83096.0,83095.0,0.13305301]
[1741868535035,0.40273311,83096.0,83095.0,0.16845301]
[1741868535246,0.28236881,83096.0,83095.0,0.16845301]
[1741868535437,0.40273311,83096.0,83095.0,0.1557658]
[1741868535638,0.1572643,83096.0,83095.0,0.1557658]
[1741868535845,0.1223643,83096.0,83095.0,0.1557658]
[1741868536441,0.002,83096.0,83095.0,0.1557658]
[1741868537150,0.25284273,83110.0,83107.0,0.1203484]
[1741868537449,0.1088293,83108.0,83107.0,0.1203484]
[1741868538239,0.00180547,83125.0,83117.0,0.1203339]
[1741868538448,0.40880399,83118.0,83117.0,0.1203339]
[1741868539633,0.28847149,83118.0,83117.0,0.1203339]
[1741868539839,0.21585443,83128.0,83124.0,0.1203238]
[1741868540745,0.0601284,83171.0,83133.0,0.0601552]
[1741868540949,0.033,83139.0,83124.0,0.01225]
[1741868541137,0.033,83139.0,83138.0,0.1203035]
[1741868541640,0.033,83139.0,83138.0,0.13254975]
[1741868541841,0.1202934,83146.0,83138.0,0.13254975]
[1741868542043,0.001,83140.0,83139.0,0.1203021]
[1741868542642,0.40876489,83145.0,83144.0,0.1202949]
[1741868543548,0.44206489,83145.0,83144.0,0.1202949]
[1741868543949,0.1535934,83145.0,83144.0,0.1202949]
[1741868544153,0.0333,83145.0,83144.0,0.1202949]
[1741868544448,0.0601277,83172.0,83144.0,0.0601469]
[1741868544646,0.0338,83157.0,83156.0,0.1202775]
[1741868545365,0.1202682,83164.0,83163.0,0.1202647]
[1741868545646,0.0601322,83165.0,83155.0,0.0342]
[1741868545647,0.1202708,83161.0,83160.0,0.1202702]
[1741868545850,0.12748,83163.0,83150.0,0.060143]
[1741868546145,0.0601367,83159.0,83148.0,0.00018043]
[1741868546344,0.1202866,83152.0,83151.0,0.1202806]
[1741868546545,0.161,83158.0,83151.0,0.1202806]
[1741868546749,0.2478746,83158.0,83157.0,0.1202761]
[1741868546949,0.1202746,83158.0,83157.0,0.1202761]
[1741868547150,0.2480746,83158.0,83157.0,0.1202761]
[1741868547448,0.1202808,83154.0,83153.0,0.1202779]
[1741868547654,0.2480754,83158.0,83157.0,0.1202761]
[1741868547860,0.1202754,83158.0,83157.0,0.1202761]
[1741868548151,0.001,83161.0,83160.0,0.1202717]
[1741868548357,0.01250694,83172.0,83168.0,0.1202601]
[1741868548539,0.0333,83171.0,83168.0,0.1202601]
[1741868548738,0.0333,83171.0,83162.0,0.0601338]
[1741868548938,0.01250694,83172.0,83166.0,0.1202616]
[1741868548939,0.0333,83168.0,83166.0,0.1202616]
[1741868549149,0.1535616,83168.0,83167.0,0.1202616]
[1741868549352,0.001,83154.0,83153.0,0.1202818]
[1741868551243,0.1202755,83158.0,83157.0,0.1202746]
[1741868552948,0.0339,83159.0,83140.0,0.01259511]
[1741868553152,0.1202837,83154.0,83153.0,0.0601395]
[1741868553541,0.2487237,83154.0,83153.0,0.0601395]
[1741868553742,0.1202876,83149.0,83146.0,0.0601453]
[1741868553940,0.1202876,83149.0,83148.0,0.12046953]
[1741868554348,0.0665,83153.0,83152.0,0.1202833]
[1741868554349,0.1867828,83153.0,83152.0,0.1202833]
[1741868555848,0.00630322,83153.0,83152.0,0.1202833]
[1741868556050,0.1202833,83153.0,83152.0,0.1202818]
[1741868556554,0.0601331,83164.0,83149.0,0.0601435]
[1741868556555,0.3696191,83165.0,83164.0,0.1202659]
[1741868556850,0.4297536,83165.0,83164.0,0.1202659]
[1741868557359,0.2493475,83165.0,83164.0,0.1202659]
[1741868557650,0.18219612,83169.0,83168.0,0.1202601]
[1741868557856,0.31151612,83169.0,83168.0,0.1202601]
[1741868558251,0.19125412,83169.0,83168.0,0.1202601]
[1741868558455,0.25138332,83169.0,83168.0,0.1202601]
[1741868559155,0.25114332,83169.0,83168.0,0.1202601]
[1741868559553,0.25114332,83169.0,83150.0,0.13707951]
[1741868559554,0.13088462,83169.0,83150.0,0.13707951]
[1741868559759,0.1804128,83163.0,83162.0,0.0601322]
[1741868559953,0.1804307,83151.0,83150.0,0.1202786]
[1741868560259,0.12908,83153.0,83152.0,0.1202833]
[1741868560452,0.2493618,83153.0,83152.0,0.1202833]
[1741868561748,0.1202876,83149.0,83148.0,0.00018043]
[1741868562054,0.1202876,83149.0,83148.0,0.12046953]
[1741868563259,0.1549876,83149.0,83148.0,0.12046953]
[1741868563460,0.0685,83149.0,83148.0,0.12046953]
[1741868563657,0.0338,83149.0,83148.0,0.12046953]
[1741868564259,0.0338,83149.0,83148.0,0.15406953]
[1741868564459,0.1288,83153.0,83152.0,0.1202833]
[1741868565050,0.0338,83158.0,83156.0,0.1202761]
[1741868565254,0.1540746,83158.0,83157.0,0.1538761]
[1741868565455,0.12876,83161.0,83160.0,0.1202717]
[1741868565650,0.2490303,83161.0,83160.0,0.1202717]
[1741868565857,0.2490303,83161.0,83160.0,0.1538717]
[1741868566068,0.2837303,83161.0,83160.0,0.1538717]
[1741868567756,0.16346,83161.0,83160.0,0.1538717]
[1741868567960,0.0338,83162.0,83161.0,0.1202703]
[1741868568156,0.1202495,83177.0,83176.0,0.1202471]
[1741868568369,0.1286,83177.0,83176.0,0.1202471]
[1741868568567,0.1923,83177.0,83176.0,0.1202471]
[1741868568766,0.3125471,83177.0,83176.0,0.1202471]
[1741868569068,0.1923,83177.0,83176.0,0.1202471]
[1741868569766,0.3125471,83177.0,83176.0,0.1202471]
[1741868569969,0.12025,83175.0,83174.0,0.1868486]
[1741868570269,0.12025,83175.0,83174.0,0.3070978]
[1741868571465,0.2524242,83177.0,83174.0,0.0666]
[1741868571666,0.1202488,83176.0,83175.0,0.1542486]
[1741868572067,0.0331,83176.0,83175.0,0.1892486]
[1741868573473,0.12788,83185.0,83176.0,0.0601239]
[1741868573668,0.16174,83184.0,83183.0,0.1202385]
[1741868573871,0.16174,83184.0,83183.0,0.1873385]
[1741868574562,0.0339,83184.0,83183.0,0.1873385]
[1741868574967,0.154137,83184.0,83183.0,0.1873385]
[1741868575569,0.0601213,83181.0,83164.0,0.07267859]
[1741868575773,0.1202486,83176.0,83175.0,0.0321]
[1741868576070,0.1202486,83176.0,83175.0,0.15235]
[1741868576764,0.1202486,83176.0,83175.0,0.31851682]
[1741868577165,0.1202486,83176.0,83175.0,0.28641682]
[1741868577361,0.1869486,83176.0,83175.0,0.28641682]
[1741868580074,0.1869486,83176.0,83173.0,0.0324]
[1741868580075,0.1202515,83174.0,83173.0,0.0324]
[1741868580673,0.1268249,83176.0,83175.0,0.12025]
[1741868581170,0.0928249,83176.0,83175.0,0.12025]
[1741868581373,0.2200649,83176.0,83175.0,0.15265]
[1741868582073,0.2201049,83176.0,83175.0,0.15265]
[1741868583266,0.2201049,83176.0,83175.0,0.0324]
[1741868583468,0.2536049,83176.0,83175.0,0.0324]
[1741868583668,0.2536049,83176.0,83175.0,0.15265]
[1741868584267,0.2201049,83176.0,83175.0,0.15265]
[1741868584560,0.2201049,83176.0,83175.0,0.0324]
[1741868584764,0.2542049,83176.0,83175.0,0.0324]
[1741868593176,0.2542049,83176.0,83175.0,0.15265]
[1741868593475,0.2542049,83176.0,83175.0,0.0324]
[1741868593879,0.0601067,83201.0,83175.0,0.0925244]
[1741868594073,0.0601067,83201.0,83177.0,0.1202437]
[1741868594074,0.1202471,83178.0,83177.0,0.1202437]
[1741868594266,0.1202471,83178.0,83177.0,0.0316]
[1741868594473,0.1202471,83178.0,83177.0,0.1518471]
[1741868594677,0.1893471,83178.0,83177.0,0.0316]
[1741868595181,0.3155471,83178.0,83177.0,0.0316]
[1741868596669,0.1202573,83170.0,83169.0,0.0651]
[1741868596873,0.1202573,83170.0,83169.0,0.0978]
[1741868597078,0.0349,83172.0,83171.0,0.1202558]
[1741868597478,0.0349,83172.0,83169.0,0.2180572]
[1741868597479,0.1202419,83181.0,83180.0,0.1803606]
[1741868597678,0.2466014,83181.0,83180.0,0.0601207]
[1741868597874,0.2466014,83181.0,83179.0,0.1202442]
[1741868597875,0.1803678,83180.0,83179.0,0.1202442]
[1741868598078,0.16194,83180.0,83179.0,0.1202442]
[1741868599377,0.12704,83180.0,83179.0,0.1202442]
[1741868600778,0.12704,83180.0,83179.0,0.0601218]
[1741868602575,0.1,83200.0,83176.0,0.01210697]
[1741868602782,0.0325,83190.0,83162.0,0.127]
[1741868602980,0.1202366,83185.0,83184.0,0.1202363]
[1741868603178,0.1202385,83183.0,83182.0,0.1803585]
[1741868603482,0.0319,83189.0,83176.0,0.01226214]
[1741868603672,0.0325,83182.0,83181.0,0.1202414]
[1741868605777,1.4573933,83192.0,83176.0,0.01257744]
[1741868605976,0.2818883,83191.0,83190.0,0.1202269]
[1741868606377,0.16158,83191.0,83190.0,0.1202269]
[1741868606576,0.12668,83191.0,83190.0,0.1202269]
[1741868606778,0.1,83200.0,83189.0,0.0601148]
[1741868607084,0.1,83200.0,83199.0,0.1202153]
[1741868607287,0.32126987,83218.0,83190.0,0.27415902]
[1741868607488,0.1550895,83217.0,83212.0,0.1201966]
[1741868607782,0.1550901,83217.0,83212.0,0.1201966]
[1741868607973,0.32126987,83218.0,83212.0,0.1201966]
[1741868608373,0.1201942,83214.0,83212.0,0.1201966]
[1741868608576,0.32126987,83218.0,83212.0,0.1201966]
[1741868608889,0.44145777,83218.0,83217.0,0.1201893]
[1741868609082,0.44145777,83218.0,83215.0,0.0600954]
[1741868609083,0.32126987,83218.0,83215.0,0.0600954]
[1741868609386,0.1201966,83212.0,83211.0,0.0339]
[1741868609877,0.1202067,83205.0,83204.0,0.00018032]
[1741868610075,0.1202067,83205.0,83204.0,0.12038842]
[1741868610483,0.1202067,83205.0,83204.0,0.00018032]
[1741868610783,0.2467267,83205.0,83204.0,0.00018032]
[1741868613476,0.1202067,83205.0,83204.0,0.00018032]
[1741868613791,0.12676,83215.0,83204.0,0.00018032]
[1741868613988,0.0600969,83214.0,83206.0,0.1202002]
[1741868614186,0.1202023,83208.0,83207.0,0.0658]
[1741868614684,0.1550023,83209.0,83208.0,0.1202023]
[1741868614889,0.1202023,83208.0,83207.0,0.0658]
[1741868615089,0.1548023,83208.0,83207.0,0.1860038]
[1741868615289,0.2821209,83209.0,83208.0,0.1202023]
[1741868615495,0.2821209,83209.0,83208.0,0.1869023]
[1741868615685,0.12712,83209.0,83208.0,0.1869023]
[1741868615882,0.12712,83213.0,83212.0,0.1201966]
[1741868616085,0.0348,83218.0,83212.0,0.1201966]
[1741868616287,0.1201838,83221.0,83220.0,0.1201836]
[1741868616584,0.162,83221.0,83213.0,0.035]
[1741868616776,0.1802897,83216.0,83215.0,0.0600961]
[1741868617485,0.060096,83216.0,83215.0,0.0600961]
[1741868618393,0.0600946,83218.0,83217.0,0.1201893]
[1741868619194,0.0600932,83220.0,83219.0,0.1201864]
[1741868619385,0.162,83221.0,83220.0,0.120185]
[1741868619996,0.2821836,83221.0,83220.0,0.120185]
[1741868620685,0.0600948,83217.0,83216.0,0.1201877]
[1741868621089,0.1201931,83215.0,83214.0,0.1201908]
[1741868621590,0.1535921,83216.0,83214.0,0.2403828]
[1741868621895,0.1201937,83214.0,83213.0,0.1551922]
[1741868622093,0.093496,83216.0,83213.0,0.1551922]
[1741868622094,0.0334,83216.0,83215.0,0.1201922]
[1741868622280,0.1535908,83216.0,83215.0,0.1201922]
[1741868622692,0.0334,83216.0,83215.0,0.1201922]
[1741868623295,0.1535908,83216.0,83215.0,0.1201922]
[1741868623894,0.0334,83216.0,83215.0,0.1201922]
[1741868624500,0.0327,83224.0,83223.0,0.1201807]
[1741868624692,0.00180339,83225.0,83223.0,0.1201807]
[1741868624693,9e-08,83225.0,83224.0,0.1201792]
[1741868625002,0.1528446,83248.0,83247.0,0.120146]
[1741868625305,0.1862446,83248.0,83247.0,0.120146]
[1741868625492,0.1201475,83246.0,83245.0,0.060074]
[1741868625688,0.060073,83247.0,83242.0,0.1201506]
[1741868625997,0.1528467,83248.0,83247.0,0.120146]
[1741868626196,0.0327,83248.0,83247.0,0.120146]
[1741868626495,0.0327,83248.0,83242.0,0.0600764]
[1741868626688,0.0600768,83242.0,83239.0,0.00018018]
[1741868626894,0.1201561,83240.0,83239.0,0.00018018]
[1741868627392,0.0714,83241.0,83239.0,0.00018018]
[1741868627393,0.0351,83241.0,83240.0,0.1201561]
[1741868627695,0.1201561,83240.0,83239.0,0.00018018]
[1741868627909,0.1201561,83240.0,83239.0,0.12033778]
[1741868628505,0.0351,83241.0,83240.0,0.1201561]
[1741868628704,0.14492,83244.0,83243.0,0.1201518]
[1741868628919,0.14492,83244.0,83241.0,0.0600768]
[1741868628920,0.1201547,83242.0,83241.0,0.1201534]
[1741868629106,0.1452,83252.0,83251.0,0.1201402]
[1741868629409,0.2653388,83252.0,83251.0,0.1201402]
[1741868629818,0.1452,83252.0,83251.0,0.1201402]
[1741868630003,0.2653388,83252.0,83251.0,0.1201402]
[1741868630208,0.120146,83247.0,83246.0,0.0600733]
[1741868630414,0.0683,83251.0,83246.0,0.0600733]
[1741868630616,0.120144,83249.0,83248.0,0.1201417]
[1741868631006,0.1201446,83248.0,83247.0,0.0335]
[1741868631313,0.1542446,83248.0,83247.0,0.0335]
[1741868631909,0.1542446,83248.0,83247.0,0.153646]
[1741868632403,0.1201446,83248.0,83247.0,0.153646]
[1741868632716,0.1201446,83248.0,83247.0,0.0335]
[1741868633306,0.0341,83248.0,83247.0,0.153646]
[1741868634421,0.1542446,83248.0,83247.0,0.153646]
[1741868634619,0.1542446,83248.0,83247.0,0.18112123]
[1741868634807,0.1542446,83248.0,83247.0,0.04799684]
[1741868635009,0.2988846,83248.0,83247.0,0.06097625]
[1741868635209,0.2988846,83248.0,83247.0,0.18112225]
[1741868635413,0.2988846,83248.0,83247.0,0.21782225]
[1741868635614,0.2988846,83248.0,83247.0,0.20484284]
[1741868635811,0.2988846,83248.0,83247.0,0.08469684]
[1741868636206,0.17874,83248.0,83247.0,0.20484284]
[1741868636408,0.19713601,83270.0,83251.0,0.0600694]
[1741868636710,0.1201374,83253.0,83252.0,0.0703]
[1741868636915,0.2645374,83253.0,83252.0,0.07048018]
[1741868637107,0.1201374,83253.0,83252.0,0.07048018]
[1741868637308,0.2138,83268.0,83253.0,0.0600682]
[1741868637515,0.060062,83263.0,83262.0,0.1201235]
[1741868637827,0.0600608,83264.0,83263.0,0.1201214]
[1741868638114,0.14412,83267.0,83266.0,0.1201186]
[1741868638320,0.17924,83268.0,83267.0,0.1201172]
[1741868638616,0.17924,83268.0,83267.0,0.1556172]
[1741868641016,0.1201258,83261.0,83260.0,0.0358]
[1741868641413,0.1902258,83261.0,83260.0,0.0358]
[1741868641612,0.1201374,83253.0,83252.0,0.00018018]
[1741868641818,0.1201475,83246.0,83241.0,0.40657022]
[1741868642010,0.1201475,83246.0,83245.0,0.33415611]
[1741868642217,0.1201475,83246.0,83245.0,0.21400721]
[1741868642616,0.1918475,83246.0,83245.0,0.21400721]
[1741868643731,0.0600758,83244.0,83231.0,0.1201684]
[1741868643921,0.120159,83238.0,83233.0,0.1201656]
[1741868644223,0.264199,83238.0,83227.0,0.0358]
[1741868644423,0.1201778,83225.0,83224.0,0.21249059]
[1741868644718,0.2644178,83225.0,83224.0,0.34522818]
[1741868644916,0.2644178,83225.0,83224.0,0.22504898]
[1741868645525,0.2644178,83225.0,83224.0,0.26214705]
[1741868645723,0.2996178,83225.0,83224.0,0.26214705]
[1741868646023,0.2996178,83225.0,83224.0,0.23942706]
[1741868646413,0.31224792,83225.0,83224.0,0.23942922]
[1741868646729,0.2996178,83225.0,83224.0,0.02736821]
[1741868647131,0.1201893,83217.0,83216.0,0.00018018]
[1741868648416,0.2648293,83217.0,83216.0,0.00018018]
[1741868648628,0.2648293,83217.0,83216.0,0.12137098]
[1741868649128,0.2648293,83217.0,83216.0,0.03738018]
[1741868649630,0.2648293,83217.0,83216.0,0.0584317]
[1741868649823,0.2648293,83217.0,83216.0,0.08170733]
[1741868650222,0.2648293,83217.0,83216.0,0.06065581]
[1741868650422,0.2648293,83217.0,83216.0,0.18084661]
[1741868650730,0.2645893,83217.0,83216.0,0.06065581]
[1741868651023,0.2645893,83217.0,83216.0,0.05965581]
[1741868651231,0.2645893,83217.0,83216.0,0.06065581]
[1741868651526,0.2645893,83217.0,83216.0,0.03738018]
[1741868651722,0.2645893,83217.0,83216.0,0.19237098]
[1741868652112,0.2645893,83217.0,83216.0,0.07218018]
[1741868652314,0.2645893,83217.0,83216.0,0.07118018]
[1741868653214,0.2645893,83217.0,83216.0,0.19137098]
[1741868653620,0.2645893,83217.0,83216.0,0.07118018]
[1741868655226,0.2645893,83217.0,83216.0,0.19137098]
[1741868655629,0.1444,83217.0,83216.0,0.19137098]
[1741868656531,0.1803,83217.0,83216.0,0.19137098]
[1741868656718,0.3004893,83217.0,83216.0,0.19337098]
[1741868657028,0.3004893,83217.0,83216.0,0.03698018]
[1741868657230,0.3004893,83217.0,83216.0,0.00318018]
[1741868658532,0.3004893,83217.0,83216.0,0.00218018]
[1741868659423,0.1201994,83210.0,83205.0,0.0335]
[1741868659625,0.0358,83209.0,83191.0,0.1202263]
[1741868659933,0.1202201,83198.0,83197.0,0.1202151]
[1741868660130,0.2655801,83198.0,83197.0,0.1202151]
[1741868660534,0.3256886,83198.0,83197.0,0.1202151]
[1741868661039,0.1202211,83195.0,83194.0,0.1545217]
[1741868661339,0.0601097,83197.0,83194.0,0.1545217]
[1741868661340,0.1546198,83197.0,83196.0,0.1202197]
[1741868661536,0.1899198,83197.0,83196.0,0.1202197]
[1741868661726,0.1859198,83197.0,83196.0,0.1202197]
[1741868661925,0.1799198,83197.0,83196.0,0.1202197]
[1741868662134,0.1202197,83196.0,83195.0,0.0345]